Workbook

Sheet Plan1
A1: ITEM | B1: DESCRIÇÃO | C1: UNID. | D1: Aimorés | E1: Baixo Guandu | F1: Gov. Lindenbergue | G1: Guaçuí | H1: Ibiraçu | I1: Iconha | J1: Itaguaçu | K1: Jaguaré | L1: Jer. Monteiro | M1: João Neiva | N1: Marilândia | O1: Mimoso do sul | P1: Rio Bananal | Q1: São Domingos | R1: Vargem Alta | S1: Sanear Colatina | T1: TOTAL
B2: LOTE 01: TUBOS EM PVC PBA CASSE 15 JE/JEI/JERI
A3: 01.1 | B3: TUBO PVC PONTA/BOLSA JEI/JERI CLASSE 15 DN50MM DE60MM X 6 METROS, C/ ANEL DE BORRACHA NORMAS: NBR 5647/1 | C3: Tubo | D3: 450 | E3: 250 | G3: 150 | L3: 600 | N3: 100 | P3: 50 | Q3: 200 | R3: 300 | S3: 1000 | T3: =SUM(D3:S3) -> 3100
A4: 01.2 | B4: TUBO PVC/PBA JE/JEI/JERI CLASSE 15 DN75MM DE85MM X 6 METROS C/ ANEL DE BORRACHA, NORMAS: NBR 5647-1 | C4: Tubo | G4: 50 | I4: 100 | P4: 30 | S4: 150 | T4: =SUM(D4:S4) -> 330
A5: 01.3 | B5: TUBO PVC/PBA JEI/JERI CLASSE 15 DN100MM DE110MM X 6 METROS, C/ ANEL DE BORRACHA, NORMAS: NBR 5647-1 | C5: Tubo | D5: 150 | F5: 20 | G5: 200 | L5: 20 | M5: 10 | N5: 40 | Q5: 100 | S5: 500 | T5: =SUM(D5:S5) -> 1040
B8: LOTE 02: TUBOS EM PVC SOLDÁVEL
A9: 02.1 | B9: TUBO PVC SOLDÁVEL CLASSE 12 20mm x 6 METROS , NORMAS: NBR 5648 | C9: Tubo | D9: 800 | E9: 800 | G9: 200 | H9: 30 | I9: 50 | J9: 200 | K9: 200 | L9: 250 | P9: 200 | Q9: 400 | R9: 40 | S9: 800 | T9: =SUM(D9:S9) -> 3970
A10: 02.2 | B10: TUBO PVC SOLDÁVEL CLASSE 12 25mm x 6 METROS, NORMAS: NBR 5648 | C10: Tubo | D10: 300 | E10: 100 | G10: 50 | H10: 15 | I10: 100 | J10: 100 | K10: 80 | L10: 100 | O10: 150 | R10: 15 | S10: 600 | T10: 1610
A11: 02.3 | B11: TUBO PVC SOLDÁVEL CLASSE 15 32mm x 6 METROS, NORMAS: NBR 5648 | C11: Tubo | D11: 60 | E11: 100 | G11: 50 | H11: 15 | J11: 100 | K11: 50 | L11: 200 | O11: 150 | R11: 100 | S11: 500 | T11: 1325
A12: 02.4 | B12: TUBO PVC SOLDÁVEL CLASSE 15 40mm x 06 METROS, NORMAS: NBR 5648 | C12: Tubo | D12: 30 | E12: 100 | H12: 10 | L12: 50 | S12: 500 | T12: 690
A13: 02.5 | B13: TUBO PVC SOLDÁVEL CLASSE 15 50mm X 06 METROS, NORMAS: NBR 5648 | C13: Tubo | D13: 60 | G13: 20 | H13: 15 | J13: 50 | L13: 150 | O13: 150 | S13: 500 | T13: 945
A14: 02.6 | B14: TUBO PVC SOLDÁVEL CLASSE 15 60mm X 06 METROS, NORMAS: NBR 5648 | C14: Tubo | I14: 50 | J14: 50 | L14: 50 | O14: 150 | Q14: 200 | S14: 100 | T14: 600
B17: LOTE 03: TUBOS EM PVC ROSCÁVEL
A18: 03.1 | B18: TUBO PVC BRANCO ROSCAVEL 1/2” X 6 METROS, NORMAS: NBR 5626 | C18: Tubo | O18: 150 | Q18: 200 | S18: 600 | T18: =SUM(D18:S18) -> 950
A19: 03.2 | B19: TUBO PVC BRANCO ROSCAVEL 3/4” X 6 METROS, NORMAS: NBR 5626 | C19: Tubo | E19: 20 | O19: 150 | Q19: 50 | S19: 300 | T19: =SUM(D19:S19) -> 520
A20: 03.3 | B20: TUBO PVC BRANCO ROSCAVEL 1” X 6 METROS, NORMAS: NBR 5626 | C20: Tubo | E20: 20 | O20: 70 | Q20: 30 | S20: 100 | T20: =SUM(D20:S20) -> 220
A21: 03.4 | B21: TUBO PVC BRANCO ROSCAVEL 1,1/2” X 6 METROS, NORMAS: NBR 5626 | C21: Tubo | S21: 100 | T21: =SUM(D21:S21) -> 100
A22: 03.5 | B22: TUBO PVC BRANCO ROSCAVEL 2” X 6 METROS, NORMAS: NBR 5626 | C22: Tubo | O22: 15 | S22: 100 | T22: =SUM(D22:S22) -> 115
B24: LOTE 04: TUBOS EM PVC DEFOFO JEI
A25: 04.1 | B25: TUBO DEFOFO MPVC PONTA/BOLSA JEI/JERI DN 100mm X 6 METROS, NORMAS: NBR 7665/2007 | C25: Tubo | E25: 180 | I25: 10 | L25: 50 | R25: 10 | S25: 1000 | T25: =SUM(D25:S25) -> 1250
A26: 04.2 | B26: TUBO PVC DEFOFO PONTA/BOLSA JEI/JERI DN150mm X 6 METROS, NORMAS: NBR 7665/2007 | C26: Tubo | D26: 120 | G26: 15 | L26: 50 | N26: 20 | O26: 20 | P26: 10 | S26: 500 | T26: =SUM(D26:S26) -> 735
A27: 04.3 | B27: TUBO PVC DEFOFO PONTA/BOLSA JEI/JERI DN200mm X 6 METROS, NORMAS: NBR 7665/2007 | C27: Tubo | D27: 50 | G27: 10 | K27: 860 | L27: 20 | N27: 10 | P27: 80 | S27: 300 | T27: =SUM(D27:S27) -> 1330
A28: 04.4 | B28: TUBO PVC DEFOFO PONTA/BOLSA JEI/JERI DN250mm X 6 METROS, NORMAS: NBR 7665/2007 | C28: Tubo | G28: 10 | S28: 50 | T28: =SUM(D28:S28) -> 60
A29: 04.5 | B29: TUBO PVC DEFOFO PONTA/BOLSA JEI/JERI DN300mm X 6 METROS, NORMAS: NBR 7665/2007 | C29: Tubo | S29: 50 | T29: =SUM(D29:S29) -> 50
B32: LOTE 05: CONEXÕES EM PVC PBA JE
A33: 05.1 | B33: ADAPTADOR PVC JE PONTA ROSCA PBA DN50 DE60MM, NORMAS: NBR 5647-1 | C33: Pç. | E33: 100 | L33: 50 | T33: =SUM(D33:S33) -> 150
A34: 05.2 | B34: ADAPTADOR PVC X FIBRO CIMENTO JE PBA DN50 DE60MM, COM ANEL DE BORRACHA, NORMAS: NBR 5647-1 | C34: Pç. | E34: 100 | G34: 10 | L34: 20 | T34: 130
A35: 05.3 | B35: ADAPTADOR PVC X FIBRO CIMENTO JE PBA DN75 DE85MM, COM ANEL DE BORRACHA, NORMAS: NBR 5647-1 | C35: Pç. | G35: 10 | T35: 10
A36: 05.4 | B36: ADAPTADOR PVC JE / ROSCA PBA DN75 DE85MM, COM ANEL DE BORRACHA, NORMAS: NBR 5647-1 | C36: Pç. | G36: 10 | T36: 10
A37: 05.5 | B37: ADAPTADOR PVC JE / ROSCA PBA DN100 DE110MM, COM ANEL DE BORRACHA, NORMAS: NBR 5647-1 | C37: Pç. | G37: 10 | T37: 10
A38: 05.6 | B38: ADAPTADOR PVC JE / ROSCA PBA DN50 DE60MM, COM ANEL DE BORRACHA, NORMAS: NBR 5647-1 | C38: Pç. | G38: 20 | T38: 20
A39: 05.7 | B39: ADAPTADOR PVC X FIBRO CIMENTO JE PBA DN100 DE110MM, COM ANEL DE BORRACHA, NORMAS: NBR 5647-1 | C39: Pç. | E39: 20 | G39: 10 | T39: 30
A40: 05.8 | B40: CAP PVC JE PBA DN50 DE60MM, COM ANEL DE BORRACHA, NORMAS: NBR 5647-1 | C40: Pç. | E40: 50 | L40: 20 | S40: 300 | T40: 370
A41: 05.9 | B41: CAP PVC JE PBA DN75 DE85MM, COM ANEL DE BORRACHA, NORMAS: NBR 5647-1 | C41: Pç. | E41: 10 | L41: 20 | S41: 100 | T41: 130
A42: 05.10 | B42: CAP PVC JE PBA DN100 DE110MM, COM ANEL DE BORRACHA, NORMAS: NBR 5647- | C42: Pç. | E42: 10 | L42: 5 | S42: 100 | T42: 115
A43: 05.11 | B43: CRUZETA PVC JE BBBB PBA DN50 DE60MM, COM ANEL DE BORRACHA, NORMAS: NBR 5647-1 | C43: Pç. | E43: 50 | G43: 5 | L43: 2 | T43: 57
A44: 05.12 | B44: CRUZETA DE REDUÇÃO PVC JE BBBB PBA DN 75X50MM DE 85X60MM, COM ANEL DE BORRACHA, NORMAS: NBR 5647-1 | C44: Pç. | G44: 5 | T44: 5
A45: 05.13 | B45: CRUZETA PVC JE BBBB PBA DN75 DE85MM, COM ANEL DE BORRACHA, NORMAS: NBR 5647-1 | C45: Pç. | E45: 8 | G45: 5 | T45: 13
A46: 05.14 | B46: CRUZETA DE REDUÇÃO PVC JE BBBB PBA DN 100X50MM DE 110X60MM, COM ANEL DE BORRACHA, NORMAS: NBR 5647-1 | C46: Pç. | E46: 10 | G46: 5 | T46: 15
A47: 05.15 | B47: CRUZETA DE REDUÇÃO PVC JE BBBB PBA DN 100X75MM DE 110X85MM, COM ANEL DE BORRACHA, NORMAS: NBR 5647-1 | C47: Pç. | E47: 10 | G47: 5 | T47: 15
A48: 05.16 | B48: CRUZETA PVC JE BBBB PBA DN100 DE110MM, COM ANEL DE BORRACHA, NORMAS: NBR 5647-1 | C48: Pç. | E48: 10 | G48: 5 | T48: 15
A49: 05.17 | B49: CURVA 22° PVC JE PB PBA DN50 DE60MM CL-20, COM ANEL DE BORRACHA, NORMAS: NBR 5647-1 | C49: Pç. | G49: 5 | L49: 20 | S49: 50 | T49: 75
A50: 05.18 | B50: CURVA 45° PVC JE PB PBA DN50 DE60MM CL-20, COM ANEL DE BORRACHA, NORMAS: NBR 5647-1 | C50: Pç. | E50: 50 | G50: 5 | L50: 10 | R50: 5 | S50: 50 | T50: 120
A51: 05.19 | B51: CURVA 90° PVC JE PB PBA DN50 DE60MM CL-20, COM ANEL DE BORRACHA, NORMAS: NBR 5647-1 | C51: Pç. | D51: 80 | E51: 50 | G51: 5 | L51: 10 | P51: 5 | R51: 5 | S51: 200 | T51: 355
A52: 05.20 | B52: CURVA 22° PVC JE PB PBA DN65 DE75MM CL-20, COM ANEL DE BORRACHA, NORMAS: NBR 5647-1 | C52: Pç. | S52: 30 | T52: 30
A53: 05.21 | B53: CURVA 22° PVC JE PB PBA DN75 DE85MM, COM ANEL DE BORRACHA, NORMAS: NBR 5647-1 | C53: Pç. | G53: 5 | S53: 30 | T53: 35
A54: 05.22 | B54: CURVA 45° PVC JE PB PBA DN75 DE85MM, COM ANEL DE BORRACHA, NORMAS: NBR 5647-1 | C54: Pç. | E54: 5 | G54: 5 | S54: 30 | T54: 40
A55: 05.23 | B55: CURVA 90° PVC JE PB PBA DN75 DE85MM, COM ANEL DE BORRACHA, NORMAS: NBR 5647-1 | C55: Pç. | E55: 50 | G55: 5 | S55: 30 | T55: 85
A56: 05.24 | B56: CURVA 22° PVC JE PB DN100 DE110MM, COM ANEL DE BORRACHA, NORMAS: NBR 5647-1 | C56: Pç. | S56: 50 | T56: 50
A57: 05.25 | B57: CURVA 90° PVC JE PB DN100 DE110MM, COM ANEL DE BORRACHA, NORMAS: NBR 5647-1 | C57: Pç. | D57: 20 | E57: 50 | G57: 5 | S57: 50 | T57: 125
A58: 05.26 | B58: CURVA 45° PVC JE PB DN100 DE110MM, COM ANEL DE BORRACHA, NORMAS: NBR 5647-1 | C58: Pç. | D58: 15 | E58: 10 | G58: 10 | P58: 2 | S58: 50 | T58: 87
A59: 05.27 | B59: JUNÇÃO PVC JE BBB PBA DN50 DE60MM, COM ANEL DE BORRACHA, NORMAS: NBR 5647-1 | C59: Pç. | F59: 5 | G59: 5 | L59: 5 | T59: 15
A60: 05.28 | B60: LUVA DE CORRER PVC BOLSA/BOLSA JUNTA ELÁSTICA DN50 DE60MM, COM ANEL DE BORRACHA, NORMAS: NBR 5647-1 | C60: Pç. | D60: 100 | E60: 200 | G60: 20 | H60: 30 | J60: 60 | K60: 100 | L60: 100 | P60: 30 | R60: 200 | S60: 700 | T60: 1540
A61: 05.29 | B61: LUVA SIMPLES PVC JE PBA DN50 DE60MM, COM ANEL DE BORRACHA, NORMAS: NBR 5647-1 | C61: Pç. | E61: 100 | G61: 10 | L61: 10 | T61: 120
A62: 05.30 | B62: LUVA DE CORRER PVC BOLSA/BOLSA JUNTA ELÁSTICA DN60 DE75MM, COM ANEL DE BORRACHA, NORMAS: NBR 5647-1 | C62: Pç. | E62: 50 | G62: 10 | J62: 20 | L62: 50 | S62: 100 | T62: 230
A63: 05.31 | B63: LUVA DE CORRER PVC BOLSA/BOLSA JUNTA ELÁSTICA DN75 DE85MM, COM ANEL DE BORRACHA, NORMAS: NBR 5647-1 | C63: Pç. | D63: 60 | E63: 50 | F63: 5 | G63: 10 | J63: 20 | L63: 50 | P63: 20 | R63: 50 | S63: 100 | T63: 365
A64: 05.32 | B64: LUVA SIMPLES PVC JE PBA DN75 DE85MM, COM ANEL DE BORRACHA, NORMAS: NBR 5647-1 | C64: Pç. | E64: 30 | G64: 5 | T64: 35
A65: 05.33 | B65: LUVA DE CORRER PVC BOLSA/BOLSA JUNTA ELÁSTICA DN100 DE110MM, COM ANEL DE BORRACHA, NORMAS: NBR 5647-1 | C65: Pç. | D65: 60 | E65: 20 | F65: 10 | G65: 10 | K65: 100 | L65: 50 | P65: 20 | R65: 30 | S65: 500 | T65: =SUM(D65:S65) -> 800
A66: 05.34 | B66: LUVA SIMPLES PVC JE PBA DN100 DE110MM, COM ANEL DE BORRACHA, NORMAS: NBR 5647-1 | C66: Pç. | E66: 15 | G66: 10 | L66: 10 | T66: 35
A67: 05.35 | B67: REDUÇÃO PVC JE PB PBA 75MM x 60MM, COM ANEL DE BORRACHA, NORMAS: NBR 5647-1 | C67: Pç. | E67: 12 | G67: 5 | L67: 20 | S67: 20 | T67: 57
A68: 05.36 | B68: REDUÇÃO PVC JE BB PBA 85MM x 60MM, COM ANEL DE BORRACHA, NORMAS: NBR 5647-1 | C68: Pç. | D68: 15 | E68: 12 | G68: 5 | L68: 20 | T68: 52
A69: 05.37 | B69: REDUÇÃO PVC JE PB PBA 85MM x 60MM, COM ANEL DE BORRACHA, NORMAS: NBR 5647-1 | C69: Pç. | D69: 15 | E69: 12 | G69: 5 | S69: 50 | T69: 82
A70: 05.38 | B70: REDUÇÃO PVC JE PB PBA 85MM x 75MM, COM ANEL DE BORRACHA, NORMAS: NBR 5647-1 | C70: Pç. | E70: 12 | G70: 5 | S70: 10 | T70: 27
A71: 05.39 | B71: REDUÇÃO PVC JE BB PBA 110MM x 85MM, COM ANEL DE BORRACHA, NORMAS: NBR 5647-1 | C71: Pç. | E71: 12 | G71: 5 | L71: 20 | S71: 10 | T71: 47
A72: 05.40 | B72: REDUÇÃO PVC JE BB PBA 110MM x 60MM, COM ANEL DE BORRACHA, NORMAS: NBR 5647-1 | E72: 12 | G72: 5 | L72: 20 | T72: 37
A73: 05.41 | B73: REDUÇÃO PVC JE PB PBA 110MM x 60MM, COM ANEL DE BORRACHA, NORMAS: NBR 5647-1 | C73: Pç. | E73: 12 | G73: 5 | S73: 20 | T73: 37
A74: 05.42 | B74: REDUÇÃO PVC JE PB PBA 110MM x 85MM, COM ANEL DE BORRACHA, NORMAS: NBR 5647-1 | C74: Pç. | E74: 12 | G74: 5 | I74: 10 | S74: 50 | T74: 77
A75: 05.43 | B75: TÊ PVC JE BBB PBA DN50 DE60MM, COM ANEL DE BORRACHA, NORMAS: NBR 5647-1 | C75: Pç. | E75: 200 | G75: 5 | L75: 50 | P75: 5 | S75: 50 | T75: 310
A76: 05.44 | B76: TÊ DE REDUÇÃO JE BBB PBA DN 75MM X 50MM DE 85MM X 60MM, COM ANEL DE BORRACHA, NORMAS: NBR 5647-1 | C76: Pç. | E76: 10 | G76: 5 | P76: 5 | S76: 0 | T76: 20
A77: 05.45 | B77: TÊ PVC JE BBB PBA DN75 DE85MM, COM ANEL DE BORRACHA, NORMAS: NBR 5647-1 | C77: Pç. | E77: 10 | G77: 5 | P77: 5 | S77: 10 | T77: 30
A78: 05.46 | B78: TÊ DE REDUÇÃO JE BBB PBA DN 100MM X 50MM DE 110MM X 60MM, COM ANEL DE BORRACHA, NORMAS: NBR 5647-1 | C78: Pç. | E78: 10 | G78: 5 | S78: 10 | T78: 25
A79: 05.47 | B79: TÊ DE REDUÇÃO JE BBB PBA DN 100MM X 75MM DE 110MM X 85MM, COM ANEL DE BORRACHA, NORMAS: NBR 5647-1 | C79: Pç. | G79: 5 | S79: 10 | T79: 15
A80: 05.48 | B80: TÊ PVC JE BBB PBA DN100 DE110MM, COM ANEL DE BORRACHA, NORMAS: NBR 5647-1 | C80: Pç. | D80: 35 | E80: 10 | F80: 5 | G80: 5 | N80: 2 | S80: 20 | T80: 77
A81: 05.49 | B81: TÊ DE REDUÇÃO JE BBB PBA DE150MM X 60MM COM ANEL DE BORRACHA, NORMAS: NBR 5647-1 | C81: Pç. | L81: 10 | S81: 10 | T81: 20
A82: 05.50 | B82: TÊ DE REDUÇÃO JE PBA DN85MM X 60MM, COM ANEL DE BORRACHA, NORMAS: NBR 5647-1 | C82: Pç. | I82: 10 | T82: 10
B85: LOTE 06: ADESIVOS, FITA VEDA ROSCA, E LUBRIFICANTES
A86: 06.1 | B86: ADESIVO PLÁSTICO PARA TUBOS E CONEXÕES DE PVC RÍGIDO (BISNAGA) 75g | C86: Pç. | D86: 400 | E86: 100 | G86: 200 | H86: 100 | K86: 100 | L86: 500 | N86: 100 | R86: 300 | S86: 1000 | T86: =SUM(D86:S86) -> 2800
A87: 06.2 | B87: ADESIVO PLÁSTICO PARA TUBOS E CONEXÕES DE PVC RÍGIDO (FRASCO) 175g | C87: Pç. | D87: 60 | E87: 600 | F87: 10 | O87: 45 | P87: 50 | Q87: 50 | T87: 815
A88: 06.3 | B88: ADESIVO PLÁSTICO PARA TUBOS E CONEXÕES DE PVC RÍGIDO (FRASCO) 850g | C88: Pç. | F88: 5 | O88: 65 | P88: 50 | Q88: 30 | T88: 150
A89: 06.4 | B89: FITA VEDA ROSCA 18MM X 50 METROS | C89: Pç. | D89: 300 | F89: 50 | G89: 100 | H89: 150 | J89: 100 | K89: 100 | L89: 300 | N89: 40 | O89: 750 | P89: 100 | Q89: 30 | R89: 30 | S89: 1000 | T89: 3050
A90: 06.5 | B90: PASTA LUBRIFICANTE EM BISNAGA COM BICO APLICADOR CAPACIDADE 160 GRS. | C90: Pç. | F90: 20 | J90: 30 | L90: 100 | R90: 50 | T90: 200
A91: 06.6 | B91: PASTA LUBRIFICANTE EM BISNAGA COM BICO APLICADOR CAPACIDADE 400 GRS. | C91: Pç. | N91: 20 | O91: 55 | P91: 30 | T91: 105
A92: 06.7 | B92: PASTA LUBRIFICANTE EM BISNAGA COM BICO APLICADOR CAPACIDADE 1.000 GRS. | C92: Pç. | D92: 100 | G92: 10 | K92: 50 | S92: 500 | T92: 660
A93: 06.8 | B93: SOLUÇÃO PREPRADORA FRASCO 1.000ML | C93: Pç. | S93: 300 | T93: 300
B96: LOTE 07: CONEXÕES DEFOFO – JE/JEI/JERI
A97: 07.1 | B97: LUVA DE CORRER DE FOFO MPVC BOLSA/BOLSA JE COM ANÉIS PARA TUBO PVC DEFOFO DN100MM, NORMAS: NBR 7665/2007 | C97: Pç. | E97: 20 | L97: 50 | S97: 500 | T97: =SUM(D97:S97) -> 570
A98: 07.2 | B98: LUVA DE CORRER DE FOFO MPVC BOLSA/BOLSA JE/JEI/JERI COM ANÉIS PARA TUBO PVC DEFOFO DN100MM, NORMAS: NBR 7665/2007 | C98: Pç. | E98: 20 | H98: 5 | I98: 10 | L98: 5 | P98: 10 | R98: 50 | S98: 100 | T98: 200
A99: 07.3 | B99: LUVA DE CORRER DEFOFO MPVC BOLSA/BOLSA JE COM ANÉIS PARA TUBO PVC DEFOFO DN150MM, NORMAS: NBR 7665/2007 | C99: Pç. | G99: 10 | H99: 5 | I99: 5 | K99: 10 | L99: 50 | N99: 2 | O99: 10 | S99: 500 | T99: 592
A100: 07.4 | B100: LUVA DE CORRER DEFOFO MPVC BOLSA/BOLSA JE/JEI/JERI COM ANÉIS PARA TUBO PVC DEFOFO DN150MM, NORMAS: NBR 7665/2007 | C100: Pç. | E100: 12 | F100: 5 | L100: 5 | P100: 10 | S100: 100 | T100: 132
A101: 07.5 | B101: LUVA DE CORRER DEFOFO MPVC BOLSA/BOLSA JE COM ANÉIS PARA TUBO PVC DEFOFO DN200MM, NORMAS: NBR 7665/2007 | C101: Pç. | G101: 6 | L101: 50 | S101: 300 | T101: 356
A102: 07.6 | B102: LUVA DE CORRER DEFOFO MPVC BOLSA/BOLSA JE/JEI/JERI COM ANÉIS PARA TUBO PVC DEFOFO DN200MM, NORMAS: NBR 7665/2007 | C102: Pç. | E102: 10 | K102: 10 | L102: 5 | S102: 50 | T102: 75
A103: 07.7 | B103: LUVA DE CORRER DEFOFO MPVC BOLSA/BOLSA JE COM ANÉIS PARA TUBO PVC DEFOFO DN250MM, NORMAS: NBR 7665/2007 | C103: Pç. | G103: 6 | S103: 150 | T103: 156
A104: 07.8 | B104: LUVA DE CORRER DEFOFO MPVC BOLSA/BOLSA JE/JEI/JERI COM ANÉIS PARA TUBO PVC DEFOFO DN250MM, NORMAS: NBR 7665/2007 | C104: Pç. | S104: 50 | T104: 50
A105: 07.9 | B105: LUVA DE CORRER DEFOFO MPVC BOLSA/BOLSA JE COM ANÉIS PARA TUBO PVC DEFOFO DN300MM, NORMAS: NBR 7665/2007 | C105: Pç. | G105: 4 | S105: 100 | T105: 104
A106: 07.10 | B106: LUVA DE CORRER DEFOFO MPVC BOLSA/BOLSA JE/JEI/JERI COM ANÉIS PARA TUBO PVC DEFOFO DN300MM, NORMAS: NBR 7665/2007 | C106: Pç. | E106: 10 | G106: 4 | S106: 30 | T106: 44
B109: LOTE 08: CONEXÕES PVC SOLDÁVEIS
A110: 08.1 | B110: ADAPTADOR SOLDÁVEL CURTO COM BOLSA E ROSCA PVC PARA REGISTRO DE 20MM X 1/2”, NORMAS: NBR 5648 | C110: Pç. | D110: 400 | E110: 200 | F110: 100 | G110: 100 | H110: 300 | J110: 30 | K110: 500 | L110: 500 | O110: 450 | P110: 600 | Q110: 50 | R110: 50 | S110: 800 | T110: =SUM(D110:S110) -> 4080
A111: 08.2 | B111: ADAPTADOR SOLDÁVEL CURTO COM BOLSA E ROSCA PVC PARA REGISTRO DE 25MM X 3/4”, NORMAS: NBR 5648 | C111: Pç. | E111: 200 | G111: 50 | H111: 20 | J111: 20 | K111: 30 | L111: 250 | O111: 250 | P111: 100 | S111: 400 | T111: 1320
A112: 08.3 | B112: ADAPTADOR SOLDÁVEL CURTO COM BOLSA E ROSCA PVC PARA REGISTRO DE 32MM X 1”, NORMAS: NBR 5648 | C112: Pç. | D112: 100 | E112: 100 | G112: 10 | K112: 30 | L112: 50 | O112: 250 | P112: 20 | R112: 10 | S112: 300 | T112: 870
A113: 08.4 | B113: ADAPTADOR SOLDÁVEL CURTO COM BOLSA E ROSCA PVC PARA REGISTRO DE 40MMX1 ¼”, NORMAS: NBR 5648 | C113: Pç. | E113: 50 | J113: 20 | L113: 5 | P113: 5 | S113: 300 | T113: 380
A114: 08.5 | B114: ADAPTADOR SOLDÁVEL CURTO COM BOLSA E ROSCA PVC PARA REGISTRO DE 50MMX1 ½”, NORMAS: NBR 5648 | C114: Pç. | E114: 20 | F114: 5 | J114: 30 | L114: 50 | O114: 250 | S114: 300 | T114: 655
A115: 08.6 | B115: ADAPTADOR SOLDÁVEL CURTO COM BOLSA E ROSCA PVC PARA REGISTRO DE 60MMX2”, NORMAS: NBR 5648 | C115: Pç. | D115: 40 | E115: 100 | L115: 50 | O115: 250 | P115: 10 | S115: 500 | T115: 950
A116: 08.7 | B116: ADAPTADOR SOLDÁVEL CURTO COM BOLSA E ROSCA PVC PARA REGISTRO DE 75MMX2 ½”, NORMAS: NBR 5648 | C116: Pç. | L116: 5 | O116: 250 | P116: 5 | S116: 100 | T116: 360
A117: 08.8 | B117: ADAPTADOR SOLDÁVEL CURTO COM BOLSA E ROSCA PVC PARA REGISTRO DE 85MMX3”, NORMAS: NBR 5648 | C117: Pç. | D117: 30 | L117: 5 | O117: 150 | P117: 5 | R117: 10 | S117: 100 | T117: 300
A118: 08.9 | B118: ADAPTADOR SOLDÁVEL COM FLANGES LIVRES PARA CAIXA D’ÁGUA 110MM X 4”, NORMAS: BR 5648 | C118: Pç. | D118: 20 | L118: 5 | O118: 15 | T118: 40
A119: 08.10 | B119: ADAPTADOR SOLDAVEL CURTO COM BOLSA E ROSCA PVC 110MMX4”, NORMAS: BR 5648 | C119: Pç. | D119: 40 | E119: 12 | O119: 15 | P119: 20 | S119: 100 | T119: 187
A120: 08.11 | B120: ADAPTADOR PVC SOLDAVEL COM FLANGE ANEL 25MM, PARA CAIXA D´ÁGUA, NORMA: BR 5648 | C120: Pç | Q120: 20 | T120: 20
A121: 08.12 | B121: BUCHA DE REDUÇÃO SOLDÁVEL CURTA PVC DE 25mmX20mm, NORMAS: NBR 5648 | C121: Pç. | D121: 600 | E121: 500 | G121: 200 | H121: 10 | J121: 30 | L121: 300 | O121: 550 | Q121: 50 | S121: 200 | T121: 2440
A122: 08.13 | B122: BUCHA DE REDUÇÃO SOLDÁVEL CURTA PVC DE 32mmX25mm, NORMAS: NBR 5648 | C122: Pç. | D122: 100 | E122: 300 | G122: 100 | H122: 5 | J122: 20 | L122: 200 | O122: 550 | Q122: 50 | S122: 50 | T122: 1375
A123: 08.14 | B123: BUCHA DE REDUÇÃO SOLDÁVEL LONGA PVC DE 32mmX20mm, NORMAS: NBR 5648 | C123: Pç. | D123: 60 | J123: 20 | L123: 50 | O123: 100 | S123: 50 | T123: 280
A124: 08.15 | B124: BUCHA DE REDUÇÃO SOLDÁVEL CURTA PVC DE 40mmX32mm, NORMAS: NBR 5648 | C124: Pç. | E124: 100 | J124: 15 | L124: 50 | P124: 10 | T124: 175
A125: 08.17 | B125: BUCHA DE REDUÇÃO SOLDÁVEL LONGA PVC DE 40mmX25mm, NORMAS: NBR 5648 | C125: Pç. | J125: 15 | L125: 5 | T125: 20
A126: 08.18 | B126: BUCHA DE REDUÇÃO SOLDÁVEL CURTA PVC DE50mmX40mm, NORMAS: NBR 5648 | C126: Pç. | E126: 100 | J126: 15 | L126: 50 | P126: 10 | T126: 175
A127: 08.19 | B127: BUCHA DE REDUÇÃO SOLDÁVEL LONGA PVC DE 50mmX25mm, NORMAS: NBR 5648 | C127: Pç. | J127: 10 | T127: 10
A128: 08.20 | B128: BUCHA DE REDUÇÃO SOLDÁVEL LONGA PVC DE 50mmX32mm, NORMAS: NBR 5648 | C128: Pç. | H128: 5 | J128: 20 | L128: 50 | O128: 200 | T128: 275
A129: 08.21 | B129: BUCHA DE REDUÇÃO SOLDÁVEL CURTA PVC DE60mmX50mm, NORMAS: NBR 5648 | C129: Pç. | E129: 100 | G129: 5 | H129: 5 | J129: 10 | L129: 50 | O129: 200 | P129: 10 | T129: 380
A130: 08.22 | B130: BUCHA DE REDUÇÃO SOLDÁVEL LONGA PVC DE 60mmX25mm, NORMAS: NBR 5648 | C130: Pç. | J130: 20 | L130: 20 | T130: 40
A131: 08.23 | B131: BUCHA DE REDUÇÃO SOLDÁVEL LONGA PVC DE 60mmX32mm, NORMAS: NBR 5648 | C131: Pç. | H131: 10 | J131: 50 | L131: 20 | O131: 100 | T131: 180
A132: 08.24 | B132: BUCHA DE REDUÇÃO SOLDÁVEL LONGA PVC DE 60mmX40mm, NORMAS: NBR 5648 | C132: Pç. | J132: 10 | L132: 50 | T132: 60
A133: 08.25 | B133: BUCHA DE REDUÇÃO SOLDÁVEL LONGA PVC DE 60mmX50mm, NORMAS: NBR 5648 | C133: Pç. | H133: 5 | J133: 10 | L133: 5 | O133: 100 | T133: 120
A134: 08.26 | B134: BUCHA DE REDUÇÃO SOLDÁVEL CURTA PVC DE75mmX60mm, NORMAS: NBR 5648 | C134: Pç. | E134: 50 | G134: 5 | J134: 10 | L134: 5 | O134: 100 | T134: 170
A135: 08.27 | B135: BUCHA DE REDUÇÃO SOLDÁVEL LONGA PVC DE 75mmX50mm, NORMAS: NBR 5648 | C135: Pç. | J135: 10 | O135: 200 | T135: 210
A136: 08.28 | B136: BUCHA DE REDUÇÃO SOLDÁVEL CURTA PVC DE 85MMX75MM, NORMAS: NBR 5648 | C136: Pç. | E136: 50 | G136: 5 | J136: 10 | O136: 200 | T136: 265
A137: 08.29 | B137: BUCHA DE REDUÇÃO SOLDÁVEL LONGA PVC DE 110mmX60mm,NORMAS: NBR 5648 | C137: Pç. | D137: 20 | L137: 5 | T137: 25
A138: 08.30 | B138: BUCHA DE REDUÇÃO SOLDÁVEL LONGA PVC DE 85mmX60mm, NORMAS: NBR 5648 | C138: Pç. | D138: 15 | J138: 10 | T138: 25
A139: 08.31 | B139: BUCHA DE REDUÇÃO SOLDÁVEL CURTA PVC DE 110MMX85MM, NORMAS: NBR 5648 | C139: Pç. | D139: 15 | G139: 5 | I139: 10 | O139: 30 | T139: 60
A140: 08.32 | B140: CAP SOLDÁVEL PVC DE 20 MM, NORMAS: NBR 5648 | C140: Pç. | E140: 600 | G140: 100 | H140: 30 | J140: 60 | L140: 300 | O140: 300 | P140: 500 | Q140: 50 | R140: 100 | S140: 500 | T140: 2540
A141: 08.33 | B141: CAP SOLDÁVEL PVC DE 25 MM, NORMAS: NBR 5648 | C141: Pç. | E141: 500 | G141: 50 | J141: 20 | L141: 100 | O141: 300 | Q141: 30 | R141: 10 | S141: 500 | T141: 1510
A142: 08.34 | B142: CAP SOLDÁVEL PVC DE 32 MM, NORMAS: NBR 5648 | C142: Pç. | E142: 200 | F142: 10 | G142: 20 | H142: 5 | J142: 20 | L142: 50 | O142: 300 | P142: 10 | Q142: 30 | R142: 10 | S142: 500 | T142: =SUM(D142:S142) -> 1155
A143: 08.35 | B143: CAP SOLDÁVEL PVC DE 40 MM, NORMAS: NBR 5648 | C143: Pç. | E143: 100 | J143: 10 | L143: 50 | P143: 5 | S143: 500 | T143: 665
A144: 08.36 | B144: CAP SOLDÁVEL PVC DE 50 MM, NORMAS: NBR 5648 | C144: Pç. | G144: 10 | H144: 5 | J144: 10 | L144: 50 | O144: 100 | P144: 20 | S144: 200 | T144: 395
A145: 08.37 | B145: CAP SOLDÁVEL PVC DE 60 MM, NORMAS: NBR 5648 | C145: Pç. | D145: 30 | E145: 100 | G145: 10 | H145: 5 | L145: 50 | O145: 100 | P145: 30 | R145: 10 | S145: 500 | T145: 835
A146: 08.38 | B146: CAP SOLDÁVEL PVC DE 75MM, NORMAS: NBR 5648 | C146: Pç. | E146: 15 | G146: 5 | J146: 5 | L146: 5 | O146: 100 | S146: 200 | T146: 330
A147: 08.39 | B147: CAP SOLDÁVEL PVC DE 85 MM, NORMAS: NBR 5648 | C147: Pç. | D147: 20 | E147: 10 | G147: 5 | J147: 5 | L147: 5 | O147: 100 | S147: 200 | T147: 345
A148: 08.40 | B148: CAP SOLDÁVEL PVC DE 110 MM, NORMAS: NBR 5648 | C148: Pç. | D148: 50 | E148: 10 | G148: 5 | L148: 5 | O148: 20 | S148: 100 | T148: 190
A149: 08.41 | B149: COLAR TOMADA PVC COM TRAVAS EM PVC 32MM X 1/2”, NORMAS: NBR 5648 | C149: Pç. | G149: 50 | H149: 15 | J149: 10 | L149: 200 | O149: 300 | R149: 200 | S149: 200 | T149: 975
A150: 08.42 | B150: COLAR TOMADA PVC COM TRAVAS EM PVC 32MM X 3/4”, NORMAS: NBR 5648 | C150: Pç. | E150: 300 | J150: 10 | L150: 10 | R150: 30 | T150: 350
A151: 08.43 | B151: COLAR TOMADA PVC COM TRAVAS EM PVC 40MM X 1/2”, NORMAS: NBR 5648 | C151: Pç. | H151: 5 | L151: 100 | P151: 10 | S151: 200 | T151: 315
A152: 08.44 | B152: COLAR TOMADA PVC COM TRAVAS EM PVC 40MM X 3/4”, NORMAS: NBR 5648 | C152: Pç. | E152: 200 | L152: 5 | T152: 205
A153: 08.45 | B153: COLAR TOMADA PVC COM TRAVAS EM PVC 50MM X 1/2”, NORMAS: NBR 5648 | C153: Pç. | G153: 100 | H153: 15 | J153: 15 | L153: 200 | O153: 300 | P153: 10 | S153: 200 | T153: 840
A154: 08.46 | B154: COLAR TOMADA PVC COM TRAVAS EM PVC 50MM X 3/4”, NORMAS: NBR 5648 | C154: Pç. | J154: 15 | L154: 5 | T154: 20
A155: 08.47 | B155: COLAR TOMADA PVC COM TRAVAS EM PVC 60MM X 1/2”, NORMAS: NBR 5648 | C155: Pç. | G155: 100 | H155: 20 | L155: 400 | O155: 300 | P155: 50 | Q155: 100 | R155: 200 | S155: 700 | T155: 1870
A156: 08.48 | B156: COLAR TOMADA PVC COM TRAVAS EM PVC 60MM X 3/4”, NORMAS: NBR 5648 | C156: Pç. | E156: 800 | J156: 20 | L156: 5 | R156: 30 | S156: 100 | T156: 955
A157: 08.49 | B157: COLAR TOMADA PVC COM TRAVAS EM PVC 75MM X 1/2”, NORMAS: NBR 5648 | C157: Pç. | G157: 20 | H157: 5 | L157: 50 | O157: 100 | T157: 175
A158: 08.50 | B158: COLAR TOMADA PVC COM TRAVAS EM PVC 75MM X 3/4”, NORMAS: NBR 5648 | C158: Pç. | E158: 150 | T158: 150
A159: 08.51 | B159: COLAR TOMADA PVC COM TRAVAS EM PVC 85MM X 1/2”, NORMAS: NBR 5648 | C159: Pç. | G159: 50 | H159: 5 | O159: 100 | Q159: 50 | T159: 205
A160: 08.52 | B160: COLAR TOMADA PVC COM TRAVAS EM PVC 85MM X 3/4”, NORMAS: NBR 5648 | C160: Pç. | E160: 100 | I160: 100 | T160: 200
A161: 08.53 | B161: COLAR TOMADA PVC COM TRAVAS EM PVC 110MM X 1/2”, NORMAS: NBR 5648 | C161: Pç. | G161: 50 | H161: 5 | J161: 10 | O161: 100 | T161: 165
A162: 08.54 | B162: COLAR TOMADA PVC COM TRAVAS EM PVC 110MM X 3/4”, NORMAS: NBR 5648 | C162: Pç. | E162: 150 | T162: 150
A163: 08.55 | B163: CRUZETA SOLDÁVEL PVC 25MM, NORMAS: NBR 5648 | C163: Pç. | G163: 5 | T163: 5
A164: 08.56 | B164: CRUZETA SOLDÁVEL PVC 50MM, NORMAS: NBR 5648 | C164: Pç. | G164: 5 | T164: 5
A165: 08.57 | B165: CURVA 45º SOLDÁVEL PVC 20MM, NORMAS: NBR 5648 | G165: 50 | L165: 5 | O165: 100 | T165: 155
A166: 08.58 | B166: CURVA 90º SOLDÁVEL PVC 20MM, NORMAS: NBR 5648 | C166: Pç. | E166: 500 | H166: 50 | L166: 5 | P166: 20 | T166: 575
A167: 08.59 | B167: CURVA 45º SOLDÁVEL PVC 25MM, NORMAS: NBR 5648 | C167: Pç. | E167: 50 | G167: 50 | L167: 5 | T167: 105
A168: 08.60 | B168: CURVA 90º SOLDÁVEL PVC 25MM, NORMAS: NBR 5648 | C168: Pç. | E168: 200 | L168: 5 | T168: 205
A169: 08.61 | B169: CURVA 45º SOLDÁVEL PVC 32MM, NORMAS: NBR 5648 | C169: Pç. | E169: 100 | G169: 50 | L169: 5 | O169: 100 | T169: 255
A170: 08.62 | B170: CURVA 90º SOLDÁVEL PVC 32MM, NORMAS: NBR 5648 | C170: Pç. | E170: 100 | F170: 10 | L170: 5 | O170: 100 | R170: 10 | T170: 225
A171: 08.63 | B171: CURVA 45º SOLDÁVEL PVC 40MM, NORMAS: NBR 5648 | C171: Pç. | E171: 10 | O171: 100 | T171: 110
A172: 08.64 | B172: CURVA 90º SOLDÁVEL PVC 40MM, NORMAS: NBR 5648 | C172: Pç. | E172: 50 | O172: 100 | T172: 150
A173: 08.65 | B173: CURVA 45º SOLDÁVEL PVC 50MM, NORMAS: NBR 5648 | C173: Pç. | E173: 10 | G173: 10 | L173: 5 | O173: 100 | T173: 125
A174: 08.66 | B174: CURVA 90º SOLDÁVEL PVC 50MM, NORMAS: NBR 5648 | C174: Pç. | E174: 20 | G174: 10 | J174: 10 | L174: 5 | O174: 100 | T174: =SUM(D174:S174) -> 145
A175: 08.67 | B175: CURVA 45º SOLDÁVEL PVC 60MM, NORMAS: NBR 5648 | C175: Pç | D175: 60 | E175: 100 | G175: 10 | J175: 5 | L175: 5 | N175: 5 | O175: 100 | R175: 10 | T175: 295
A176: 08.68 | B176: CURVA 90º SOLDÁVEL PVC 60MM, NORMAS: NBR 5648 | C176: Pç. | D176: 100 | E176: 200 | G176: 10 | L176: 5 | N176: 10 | O176: 100 | P176: 5 | R176: 10 | T176: 440
A177: 08.69 | B177: CURVA 45º SOLDÁVEL PVC 75MM, NORMAS: NBR 5648 | C177: Pç. | E177: 18 | G177: 5 | O177: 100 | T177: 123
A178: 08.70 | B178: CURVA 90º SOLDÁVEL PVC 75MM, NORMAS: NBR 5648 | C178: Pç. | E178: 30 | O178: 100 | T178: 130
A179: 08.71 | B179: CURVA 45º SOLDÁVEL PVC 85MM, NORMAS: NBR 5648 | C179: Pç | E179: 12 | G179: 5 | O179: 100 | T179: 117
A180: 08.72 | B180: CURVA 90º SOLDÁVEL PVC 85MM, NORMAS: NBR 5648 | C180: Pç. | E180: 30 | O180: 100 | T180: 130
A181: 08.73 | B181: CURVA 45º SOLDÁVEL PVC 110MM, NORMAS: NBR 5648 | C181: Pç. | E181: 12 | G181: 5 | O181: 100 | T181: 117
A182: 08.74 | B182: CURVA 90º SOLDÁVEL PVC 110MM, NORMAS: NBR 5648 | C182: Pç. | E182: 40 | O182: 100 | T182: 140
A183: 08.75 | B183: JOELHO 90º SOLDÁVEL E COM ROSCA (LR) PVC 20MMX1/2” COM BUCHA LATÃO, NORMAS: NBR 5648 | C183: Pç. | D183: 3000 | E183: 100 | T183: 3100
A184: 08.76 | B184: JOELHO 90º SOLDÁVEL E COM ROSCA (LR) PVC 25MMX3/4”, COM BUCHA LATÃO NORMAS: NBR 5648 | C184: Pç. | E184: 50 | T184: 50
A185: 08.77 | B185: JOELHO 90º SOLDÁVEL E COM ROSCA (LR) PVC 20MMX1/2”, NORMAS: NBR 5648 | C185: Pç | G185: 100 | J185: 50 | O185: 400 | Q185: 200 | R185: 50 | T185: 800
A186: 08.78 | B186: JOELHO 90º SOLDÁVEL E COM ROSCA (LR) PVC 25MMX3/4”, NORMAS: NBR 5648 | C186: Pç. | G186: 50 | O186: 200 | T186: 250
A187: 08.79 | B187: JOELHO REDUÇÃO 90º SOLDÁVEL E COM ROSCA (LR) PVC 25MMX1/2”, NORMAS: NBR 5648 | C187: Pç | G187: 50 | J187: 50 | O187: 200 | Q187: 50 | T187: 350
A188: 08.80 | B188: JOELHO REDUÇÃO 90º SOLDÁVEL E COM ROSCA (LR) PVC 32MMX3/4”, NORMAS: NBR 5648 | C188: Pç | G188: 20 | O188: 100 | T188: 120
A189: 08.81 | B189: JOELHO 45º SOLDAVEL PVC DE 20MM, NORMAS: NBR 5648 | C189: Pç. | G189: 50 | L189: 5 | O189: 100 | P189: 50 | R189: 250 | S189: 50 | T189: 505
A190: 08.82 | B190: JOELHO 90º SOLDÁVEL PVC 20MM, NORMAS: NBR 5648 | C190: Pç. | D190: 4000 | E190: 5000 | G190: 100 | H190: 300 | J190: 2000 | K190: 2000 | L190: 1000 | N190: 200 | O190: 400 | P190: 2000 | Q190: 500 | R190: 200 | S190: 700 | T190: 18400
A191: 08.83 | B191: JOELHO 45º SOLDAVEL PVC DE 25MM, NORMAS: NBR 5648 | C191: Pç. | Q191: 20 | R191: 100 | T191: 120
A192: 08.84 | B192: JOELHO 90º SOLDÁVEL PVC 25MM, NORMAS: NBR 5648 | C192: Pç | E192: 800 | G192: 50 | J192: 50 | K192: 50 | L192: 200 | O192: 200 | P192: 50 | Q192: 50 | S192: 700 | T192: 2150
A193: 08.85 | B193: JOELHO 45º SOLDAVEL PVC DE 32MM, NORMAS: NBR 5648 | C193: Pç. | G193: 20 | L193: 5 | O193: 200 | P193: 100 | Q193: 50 | R193: 30 | T193: 405
A194: 08.86 | B194: JOELHO 90º SOLDÁVEL PVC 32MM, NORMAS: NBR 5648 | C194: Pç. | E194: 200 | G194: 20 | L194: 150 | O194: 200 | P194: 10 | S194: 300 | T194: 880
A195: 08.87 | B195: JOELHO 45º SOLDAVEL PVC DE 40MM, NORMAS: NBR 5648 | C195: Pç. | R195: 30 | T195: 30
A196: 08.88 | B196: JOELHO 90º SOLDÁVEL PVC 40MM, NORMAS: NBR 5648 | C196: Pç. | E196: 100 | L196: 50 | P196: 10 | S196: 300 | T196: 460
A197: 08.89 | B197: JOELHO 45º SOLDAVEL PVC DE 50MM, NORMAS: NBR 5648 | C197: Pç. | G197: 20 | L197: 5 | O197: 200 | R197: 200 | T197: 425
A198: 08.90 | B198: JOELHO 90º SOLDÁVEL PVC 50MM, NORMAS:NBR 5648 | C198: Pç. | E198: 50 | J198: 50 | L198: 100 | O198: 200 | P198: 20 | S198: 200 | T198: 620
A199: 08.91 | B199: JOELHO 45º SOLDAVEL PVC DE 60MM, NORMAS: NBR 5648 | C199: Pç. | G199: 20 | L199: 5 | O199: 200 | P199: 10 | R199: 20 | T199: 255
A200: 08.92 | B200: JOELHO 90º SOLDÁVEL PVC 60MM, NORMAS: NBR 5648 | C200: Pç. | E200: 300 | J200: 100 | L200: 100 | O200: 200 | Q200: 30 | S200: 500 | T200: 1230
A201: 08.93 | B201: JOELHO 45º SOLDAVEL PVC DE 75MM, NORMAS: NBR 5648 | C201: Pç. | O201: 100 | T201: 100
A202: 08.94 | B202: JOELHO 90º SOLDÁVEL PVC 75MM, NORMAS: NBR 5648 | C202: Pç. | E202: 20 | L202: 50 | O202: 100 | S202: 20 | T202: 190
A203: 08.95 | B203: JOELHO 45º SOLDAVEL PVC DE 85MM, NORMAS: NBR 5648 | C203: Pç. | O203: 100 | P203: 5 | T203: 105
A204: 08.96 | B204: JOELHO 90º SOLDÁVEL PVC 85MM, NORMAS: NBR 5648 | C204: Pç. | E204: 20 | L204: 50 | O204: 100 | Q204: 10 | S204: 20 | T204: 200
A205: 08.97 | B205: JOELHO 45º SOLDAVEL PVC DE 110MM, NORMAS: NBR 5648 | C205: Pç. | O205: 100 | P205: 5 | Q205: 20 | S205: 5 | T205: 130
A206: 08.98 | B206: JOELHO 90º SOLDÁVEL PVC 110MM, NORMAS: NBR 5648 | C206: Pç. | E206: 20 | O206: 100 | P206: 5 | Q206: 20 | S206: 20 | T206: =SUM(D206:S206) -> 165
A207: 08.99 | B207: LUVA DE CORRER PVC PARA TUBO SOLDAVEL 20MM, COM ANÉIS DE BORRACHA, NORMAS: NBR 5648 | C207: Pç. | E207: 500 | G207: 50 | H207: 15 | J207: 200 | L207: 200 | N207: 4 | O207: 200 | P207: 20 | Q207: 40 | R207: 50 | S207: 800 | T207: 2079
A208: 8100 | B208: LUVA DE CORRER PVC PARA TUBO SOLDAVEL 25MM, COM ANÉIS DE BORRACHA, NORMAS: NBR 5648 | C208: Pç. | E208: 300 | F208: 10 | G208: 50 | L208: 100 | O208: 100 | Q208: 50 | S208: 500 | T208: 1110
A209: 8101 | B209: LUVA DE CORRER PVC PARA TUBO SOLDAVEL 32MM, COM ANÉIS DE BORRACHA, NORMAS: NBR 5648 | C209: Pç. | E209: 200 | G209: 50 | H209: 30 | L209: 150 | O209: 400 | Q209: 50 | R209: 50 | S209: 200 | T209: 1130
A210: 8102 | B210: LUVA DE CORRER PVC PARA TUBO SOLDAVEL 40MM, COM ANÉIS DE BORRACHA, NORMAS: NBR 5648 | C210: Pç. | E210: 100 | H210: 5 | L210: 20 | Q210: 10 | S210: 200 | T210: 335
A211: 8103 | B211: LUVA DE CORRER PVC PARA TUBO SOLDAVEL 50MM, COM ANÉIS DE BORRACHA, NORMAS: NBR 5648 | C211: Pç. | E211: 50 | G211: 10 | H211: 10 | I211: 50 | J211: 50 | K211: 100 | N211: 4 | O211: 300 | P211: 10 | S211: 150 | T211: 734
A212: 8104 | B212: LUVA DE CORRER PVC PARA TUBO SOLDAVEL 60MM, COM ANÉIS DE BORRACHA, NORMAS: NBR 5648 | C212: Pç. | E212: 1200 | G212: 10 | H212: 30 | I212: 50 | J212: 200 | L212: 100 | O212: 300 | Q212: 100 | R212: 50 | S212: 700 | T212: 2740
A213: 8105 | B213: LUVA SOLDÁVEL PVC 20MM, NORMAS: NBR 5648 | C213: Pç. | D213: 2000 | E213: 2000 | G213: 100 | J213: 2000 | K213: 1000 | L213: 1000 | O213: 600 | P213: 200 | Q213: 500 | T213: 9400
... 427 more rows

Sheet Plan2

Sheet Plan3
